bitfinex/quotes_BTCUSD_20251007
["timestamp","ask_amount","ask_price","bid_price","bid_amount"]
[1759861314136,1.44502149,121050.0,121040.0,0.10846598]
[1759861316539,0.17565838,121050.0,121040.0,0.15488598]
[1759861316754,0.17134559,121050.0,121040.0,0.34233772]
[1759861316980,0.43111586,121050.0,121040.0,0.3719273]
[1759861317170,0.43111586,121050.0,121040.0,0.41349449]
[1759861317379,0.43111586,121050.0,121040.0,0.34971019]
[1759861317592,0.19615586,121050.0,121040.0,0.20675671]
[1759861317766,0.17134559,121050.0,121040.0,0.37199134]
[1759861318576,0.16834559,121050.0,121040.0,0.37199134]
[1759861318984,0.17034559,121050.0,121040.0,0.37199134]
[1759861319653,0.16734559,121050.0,121040.0,0.37199134]
[1759861319977,0.17134559,121050.0,121040.0,0.37499134]
[1759861320189,0.00212461,121050.0,121040.0,0.45198814]
[1759861320411,0.00012461,121050.0,121040.0,0.39424055]
[1759861320626,0.16834559,121050.0,121040.0,0.23300592]
[1759861320830,0.16934559,121050.0,121040.0,0.35371019]
[1759861322067,0.00412461,121050.0,121040.0,0.35371019]
[1759861322267,0.16934559,121050.0,121040.0,0.35371019]
[1759861323448,0.78422642,121050.0,121040.0,0.35371019]
[1759861324199,0.16934559,121050.0,121040.0,0.37597941]
[1759861324401,0.78422642,121050.0,121040.0,0.37597941]
[1759861324838,0.16934559,121050.0,121040.0,0.37597941]
[1759861325040,0.78422642,121050.0,121040.0,0.37597941]
[1759861327967,0.61900544,121050.0,121040.0,0.37597941]
[1759861328182,0.00412461,121050.0,121040.0,0.35371019]
[1759861328397,0.16934559,121050.0,121040.0,0.35371019]
[1759861328600,0.16934559,121050.0,121040.0,0.58867019]
[1759861328784,0.16934559,121050.0,121040.0,0.6109338]
[1759861329187,0.16934559,121050.0,121040.0,0.3759738]
[1759861329409,0.78422642,121050.0,121040.0,0.6109338]
[1759861330617,0.78422642,121050.0,121040.0,0.21073917]
[1759861330811,0.78422642,121050.0,121040.0,0.36968959]
[1759861331009,0.16934559,121050.0,121040.0,0.41363959]
[1759861331210,0.16934559,121050.0,121040.0,0.57887422]
[1759861331410,0.78322642,121050.0,121040.0,0.57887422]
[1759861332001,0.78322642,121050.0,121040.0,0.17867959]
[1759861332217,0.78022642,121050.0,121040.0,0.33991422]
[1759861332596,0.78322642,121050.0,121040.0,0.3725038]
[1759861333515,0.78422642,121050.0,121040.0,0.3725038]
[1759861334459,0.78422642,121050.0,121040.0,0.34291422]
[1759861334889,1.01918642,121050.0,121040.0,0.34291422]
[1759861335156,0.40430559,121050.0,121040.0,0.34291422]
[1759861335355,1.01918642,121050.0,121040.0,0.34291422]
[1759861335867,0.85396544,121050.0,121040.0,0.34291422]
[1759861336097,1.01918642,121050.0,121040.0,0.34291422]
[1759861336531,0.40426559,121050.0,121040.0,0.3725038]
[1759861336975,0.40426559,121050.0,121040.0,0.20726917]
[1759861337218,1.01914642,121050.0,121040.0,0.13372959]
[1759861337448,1.71714931,121050.0,121040.0,0.04798361]
[1759861337657,1.74196303,121050.0,121040.0,0.007]
[1759861337921,2.74636386,121050.0,121040.0,0.007]
[1759861338064,2.76608626,121050.0,121040.0,0.007]
[1759861338694,2.15120543,121050.0,121040.0,0.007]
[1759861338901,0.92144377,121050.0,121040.0,0.007]
[1759861339123,2.15120543,121050.0,121040.0,0.007]
[1759861339309,1.5697246,121050.0,121040.0,0.04038]
[1759861339518,1.23247493,121050.0,121040.0,0.08897]
[1759861339729,1.56135493,121050.0,121040.0,0.11134]
[1759861339935,1.56135493,121050.0,121040.0,0.15529]
[1759861340150,1.56135493,121050.0,121040.0,0.11134]
[1759861340354,1.47343493,121050.0,121040.0,0.11134]
[1759861340553,1.48775243,121050.0,121040.0,0.11134]
[1759861340762,0.8595541,121050.0,121040.0,0.15529]
[1759861340970,1.47443493,121050.0,121040.0,0.15529]
[1759861341373,1.46843493,121050.0,121040.0,0.15229]
[1759861341572,1.47143493,121050.0,121040.0,0.15629]
[1759861341778,1.47143493,121050.0,121040.0,0.11234]
[1759861343765,2.70119659,121050.0,121040.0,0.008]
[1759861343996,2.08631576,121050.0,121040.0,0.008]
[1759861351502,2.08231576,121050.0,121040.0,0.004]
[1759861351706,2.08731576,121050.0,121040.0,0.007]
[1759861353296,2.70219659,121050.0,121040.0,0.007]
[1759861353499,2.08731576,121050.0,121040.0,0.007]
[1759861353695,2.70219659,121050.0,121040.0,0.007]
[1759861354485,2.70219659,121050.0,121000.0,0.15961361]
[1759861354486,3.3915974,121050.0,121000.0,0.15961361]
[1759861354733,1.39503725,121010.0,121000.0,0.13735]
[1759861354933,2.05311931,121010.0,121000.0,0.11856]
[1759861355190,2.05311931,121010.0,120980.0,0.03978361]
[1759861355191,2.07798077,121010.0,120980.0,0.03978361]
[1759861355405,2.07798077,121010.0,120960.0,0.05185319]
[1759861355406,0.50533024,120970.0,120960.0,0.05185319]
[1759861355644,0.16534391,120960.0,120950.0,0.00027]
[1759861355885,1.39410557,120960.0,120950.0,0.00027]
[1759861356117,1.65541461,120960.0,120950.0,0.07247536]
[1759861356339,1.65541461,120960.0,120950.0,0.14614536]
[1759861357329,1.66474235,120960.0,120950.0,0.14614536]
[1759861357899,1.66874235,120960.0,120950.0,0.14614536]
[1759861358159,1.43226235,120960.0,120950.0,0.14614536]
[1759861358355,0.42965295,120960.0,120950.0,0.14614536]
[1759861358554,1.04453378,120960.0,120950.0,0.14614536]
[1759861358845,1.04449378,120960.0,120950.0,0.14714536]
[1759861359056,0.42961295,120960.0,120950.0,0.14714536]
[1759861359254,1.04449378,120960.0,120950.0,0.14714536]
[1759861360346,1.6684285,120960.0,120950.0,0.14714536]
[1759861360785,1.6684285,120960.0,120950.0,0.15180051]
[1759861360987,1.75155056,120960.0,120950.0,0.06150051]
[1759861361430,1.75155056,120960.0,120950.0,0.09177051]
[1759861362635,1.75155056,120960.0,120950.0,0.11059051]
[1759861362847,1.51511056,120960.0,120950.0,0.15420051]
[1759861363255,1.6683485,120960.0,120950.0,0.15420051]
[1759861363801,1.4319885,120960.0,120950.0,0.15420051]
[1759861364008,1.6683085,120960.0,120950.0,0.15420051]
[1759861364419,1.75143056,120960.0,120950.0,0.09177051]
[1759861365531,1.75143056,120960.0,120950.0,0.11059051]
[1759861365757,0.5216689,120960.0,120950.0,0.11059051]
[1759861365981,1.75143056,120960.0,120950.0,0.15420051]
[1759861366196,1.75143056,120960.0,120950.0,0.11059051]
[1759861366407,1.51511056,120960.0,120950.0,0.11059051]
[1759861366655,0.02882904,120960.0,120950.0,0.31955809]
[1759861367119,1.02363331,120970.0,120950.0,0.31955809]
[1759861367318,1.0484605,120970.0,120960.0,0.01879]
[1759861367578,1.0484605,120970.0,120960.0,0.14756]
[1759861368484,1.0484605,120970.0,120960.0,0.10395]
[1759861368690,1.0484605,120970.0,120960.0,0.14756]
[1759861369493,1.0484205,120970.0,120960.0,0.14756]
[1759861369689,1.0485805,120970.0,120960.0,0.14756]
[1759861369860,1.0525805,120970.0,120960.0,0.14756]
[1759861370262,1.0535805,120970.0,120960.0,0.14756]
[1759861371001,0.16534391,120960.0,120950.0,0.00077536]
[1759861371168,2.43310846,120960.0,120950.0,0.00077536]
[1759861371367,2.44839836,120960.0,120950.0,0.00077536]
[1759861371706,1.83351753,120960.0,120950.0,0.00077536]
[1759861371880,1.83351753,120960.0,120950.0,0.01956536]
[1759861372646,1.83751753,120960.0,120950.0,0.01956536]
[1759861373106,1.83751753,120960.0,120950.0,0.02522051]
[1759861373329,2.07391753,120960.0,120950.0,0.02522051]
[1759861373936,2.15987753,120960.0,120950.0,0.00643051]
[1759861374136,2.77475836,120960.0,120950.0,0.00643051]
[1759861374544,2.07387753,120960.0,120950.0,0.02522051]
[1759861374687,2.07387753,120960.0,120950.0,0.09156051]
[1759861374688,1.83751753,120960.0,120950.0,0.09156051]
[1759861374891,2.07387753,120960.0,120950.0,0.10938051]
[1759861375547,0.84011587,120960.0,120950.0,0.15299051]
[1759861375753,1.28965279,120960.0,120950.0,0.31834809]
[1759861375957,0.0192899,120960.0,120950.0,0.36673995]
[1759861376168,0.02482719,120970.0,120960.0,0.16534391]
[1759861376511,0.02482719,120970.0,120960.0,0.28263391]
[1759861376695,0.63970802,120970.0,120960.0,0.31290391]
[1759861376898,0.61488083,120970.0,120960.0,0.31290391]
[1759861377118,1.1013979,120980.0,120970.0,0.16533024]
[1759861377318,1.1013979,120980.0,120970.0,0.14756]
[1759861377530,0.74171728,120980.0,120970.0,0.14756]
[1759861377735,1.4413979,120980.0,120970.0,0.10395]
[1759861378573,1.45671714,120980.0,120970.0,0.10395]
[1759861379052,1.46071714,120980.0,120970.0,0.10395]
[1759861379276,1.46589048,120980.0,120970.0,0.10395]
[1759861379580,1.46589048,120980.0,120970.0,0.10495]
[1759861379731,1.46989048,120980.0,120970.0,0.10495]
[1759861381185,1.55301254,120980.0,120970.0,0.001]
[1759861382355,0.16533024,120970.0,120960.0,0.00413757]
[1759861382585,1.38941216,120970.0,120960.0,0.00413757]
[1759861383013,0.68973154,120970.0,120960.0,0.00413757]
[1759861383247,1.64316073,120970.0,120960.0,0.00413757]
[1759861383650,1.88156073,120970.0,120960.0,0.00413757]
[1759861383863,1.56320073,120970.0,120960.0,0.00413757]
[1759861384074,1.88556073,120970.0,120960.0,0.00413757]
[1759861384283,1.56320073,120970.0,120960.0,0.00413757]
[1759861384520,1.88552073,120970.0,120960.0,0.02314757]
[1759861384974,1.56320073,120970.0,120960.0,0.02314757]
[1759861385197,0.84613154,120970.0,120960.0,0.08969757]
[1759861385424,1.79956073,120970.0,120960.0,0.08969757]
[1759861385915,0.84613154,120970.0,120960.0,0.10797757]
[1759861386146,0.84609154,120970.0,120960.0,0.10797757]
[1759861387036,0.52664948,120970.0,120960.0,0.10797757]
[1759861387255,0.52664948,120970.0,120960.0,0.31862148]
[1759861387483,0.36131924,120970.0,120960.0,0.31862148]
[1759861387727,0.006,120970.0,120960.0,0.31862148]
[1759861387947,0.17133024,120970.0,120960.0,0.31862148]
[1759861388176,0.006,120970.0,120960.0,0.31862148]
[1759861389026,0.17133024,120970.0,120960.0,0.31862148]
[1759861389216,0.17133024,120970.0,120960.0,0.15327757]
[1759861390385,0.17133024,120970.0,120960.0,0.31862148]
[1759861390589,0.006,120970.0,120960.0,0.60641584]
[1759861390806,0.006,120970.0,120960.0,0.63600542]
[1759861391003,0.006,120970.0,120960.0,0.58457106]
[1759861391214,0.17133024,120970.0,120960.0,0.34821106]
[1759861391420,0.006,120970.0,120960.0,0.58457106]
[1759861393071,0.006,120970.0,120960.0,0.43133312]
[1759861393301,0.17133024,120970.0,120960.0,0.41914715]
[1759861393522,0.17133024,120970.0,120960.0,0.31862148]
[1759861393714,0.17133024,120970.0,120960.0,0.15327757]
[1759861393914,0.17133024,120970.0,120960.0,0.10797757]
[1759861394127,0.66733024,120970.0,120960.0,0.10797757]
[1759861394336,0.506,120970.0,120960.0,0.31862148]
[1759861395155,0.5,120970.0,120960.0,0.31862148]
[1759861395360,0.5,120970.0,120960.0,0.39368376]
[1759861395581,0.505,120970.0,120960.0,0.31862148]
[1759861395807,0.505,120970.0,120960.0,0.34821106]
[1759861395999,0.504,120970.0,120960.0,0.34821106]
[1759861396216,0.504,120970.0,120960.0,0.58461106]
[1759861396424,0.504,120970.0,120960.0,0.58661106]
[1759861397329,0.5,120970.0,120960.0,0.58661106]
[1759861397531,0.504,120970.0,120960.0,0.59461106]
[1759861397767,0.5,120970.0,120960.0,0.58461106]
[1759861397968,0.5,120970.0,120960.0,0.67073312]
[1759861398176,0.503,120970.0,120960.0,0.67773312]
[1759861398789,0.503,120970.0,120960.0,0.67473312]
[1759861399005,0.503,120970.0,120960.0,0.71626348]
[1759861399006,0.501,120970.0,120960.0,0.71626348]
[1759861399415,0.505,120970.0,120960.0,0.72426348]
[1759861400189,0.505,120970.0,120960.0,0.48786348]
[1759861400458,0.505,120970.0,120960.0,0.44333312]
[1759861400887,0.505,120970.0,120960.0,0.59649106]
[1759861401288,0.505,120970.0,120960.0,0.59657106]
[1759861403032,0.505,120970.0,120960.0,0.33062148]
[1759861403149,0.67033024,120970.0,120960.0,0.56690148]
[1759861403823,0.67033024,120970.0,120960.0,0.33062148]
[1759861404239,0.67033024,120970.0,120960.0,0.56686148]
[1759861404993,0.505,120970.0,120960.0,0.56686148]
[1759861405200,0.67033024,120970.0,120960.0,0.16527757]
[1759861405407,0.67033024,120970.0,120960.0,0.56686148]
[1759861406542,1.96375943,120970.0,120960.0,0.10169757]
[1759861406740,0.50534391,120960.0,120950.0,0.00077536]
[1759861407035,1.54189516,120960.0,120950.0,0.00850236]
[1759861407234,1.77893516,120960.0,120950.0,0.03175536]
[1759861407580,1.77893516,120960.0,120950.0,0.05076536]
[1759861407776,1.77893516,120960.0,120950.0,0.00077536]
[1759861408029,1.84142265,120960.0,120950.0,0.01978536]
[1759861408234,1.78893516,120960.0,120950.0,0.02278536]
[1759861408464,1.77893516,120960.0,120950.0,0.01978536]
[1759861408674,1.77993516,120960.0,120950.0,0.05076536]
[1759861408815,1.78993516,120960.0,120950.0,0.08933536]
[1759861409636,1.79001516,120960.0,120950.0,0.10782536]
[1759861409860,1.78901516,120960.0,120950.0,0.10782536]
[1759861410101,1.77901516,120960.0,120950.0,0.08633536]
[1759861410227,1.79701516,120960.0,120950.0,0.08933536]
[1759861411042,1.79701516,120960.0,120950.0,0.05835536]
[1759861412735,1.79701516,120960.0,120950.0,0.05887277]
[1759861413144,1.79701516,120960.0,120950.0,0.08975277]
[1759861413349,1.79693516,120960.0,120950.0,0.08975277]
[1759861414230,1.79693516,120960.0,120950.0,0.05887277]
[1759861414664,1.79693516,120960.0,120950.0,0.08975277]
[1759861414906,1.4767731,120960.0,120950.0,0.31935035]
[1759861415109,0.358,120960.0,120950.0,0.31935035]
[1759861415315,0.59492,120960.0,120950.0,0.31935035]
[1759861415522,0.42026391,120960.0,120950.0,0.31935035]
[1759861415697,0.25492,120960.0,120950.0,0.31935035]
[1759861417175,0.42026391,120960.0,120950.0,0.31935035]
[1759861418787,1.64589516,120960.0,120950.0,0.00429277]
[1759861419212,1.6707295,120960.0,120950.0,0.00429277]
[1759861419619,1.69972738,120960.0,120950.0,0.00429277]
[1759861419831,1.76168794,120960.0,120950.0,0.00429277]
[1759861420248,2.71511713,120960.0,120950.0,0.00429277]
[1759861420657,1.76168794,120960.0,120950.0,0.00429277]
[1759861422555,2.71511713,120960.0,120950.0,0.00429277]
[1759861422995,1.76168794,120960.0,120950.0,0.00429277]
[1759861423250,1.85873572,120960.0,120950.0,0.05082277]
[1759861423420,1.85877572,120960.0,120950.0,0.02118277]
[1759861423623,1.96166572,120960.0,120950.0,0.00429277]
[1759861424074,1.96162572,120960.0,120950.0,0.05082277]
[1759861424211,1.62185572,120960.0,120950.0,0.08568277]
[1759861424553,1.62185572,120960.0,120950.0,0.14916277]
[1759861424751,1.55989516,120960.0,120950.0,0.10398277]
[1759861424991,0.50334597,120960.0,120950.0,0.14916277]
[1759861425174,1.79677516,120960.0,120950.0,0.14916277]
[1759861425637,1.79677516,120960.0,120950.0,0.10398277]
[1759861426282,1.79673516,120960.0,120950.0,0.14916277]
[1759861426706,1.79673516,120960.0,120950.0,0.00429277]
[1759861428185,1.88816474,120960.0,120950.0,0.00429277]
[1759861429598,0.66889767,120960.0,120950.0,0.00429277]
[1759861429808,1.94508686,120960.0,120950.0,0.00429277]
[1759861429953,0.99165767,120960.0,120950.0,0.00429277]
[1759861430276,1.94508686,120960.0,120950.0,0.00429277]
[1759861430833,1.95708474,120960.0,120950.0,0.00429277]
[1759861431518,1.97243574,120960.0,120950.0,0.00429277]
[1759861431815,1.63432474,120960.0,120950.0,0.00429277]
[1759861432049,0.001,120960.0,120950.0,0.10398277]
[1759861432225,0.16634391,120960.0,120950.0,0.34147573]
[1759861432452,0.001,120960.0,120950.0,0.31452035]
[1759861432855,0.16634391,120960.0,120950.0,0.31452035]
[1759861433243,1.1197731,120960.0,120950.0,0.05604277]
[1759861433444,1.54289516,120960.0,120950.0,0.00429277]
[1759861433657,1.54289516,120960.0,120950.0,0.02118277]
[1759861434008,1.54289516,120960.0,120950.0,0.14916277]
[1759861434198,1.77969516,120960.0,120950.0,0.14916277]
[1759861434435,0.58946597,120960.0,120950.0,0.14916277]
[1759861434645,1.77977516,120960.0,120950.0,0.14916277]
[1759861438837,0.32477696,120960.0,120950.0,0.03861277]
[1759861439066,1.84064865,120960.0,120950.0,0.00429277]
[1759861439271,1.88086381,120960.0,120950.0,0.00429277]
[1759861440348,1.95949169,120960.0,120950.0,0.00429277]
[1759861440766,1.93049381,120960.0,120950.0,0.00429277]
[1759861441787,1.95949169,120960.0,120950.0,0.00429277]
[1759861442298,1.85702889,120960.0,120950.0,0.00429277]
[1759861442512,1.88602677,120960.0,120950.0,0.00429277]
[1759861442729,1.90291677,120960.0,120950.0,0.00429277]
[1759861443150,2.34987616,120960.0,120950.0,0.00429277]
[1759861443503,2.32087828,120960.0,120950.0,0.00429277]
[1759861443928,2.32087166,120960.0,120950.0,0.02118277]
[1759861444430,1.58841375,120960.0,120950.0,0.10120277]
[1759861446272,0.65045946,120960.0,120950.0,0.10120277]
[1759861446534,0.16634391,120960.0,120950.0,0.31215035]
[1759861446770,0.16634391,120960.0,120950.0,0.38678546]
[1759861446996,0.8665382,120960.0,120950.0,0.38678546]
[1759861447270,0.24946597,120960.0,120950.0,0.06635277]
[1759861447474,1.2065382,120960.0,120950.0,0.31215035]
[1759861447689,1.2065382,120960.0,120950.0,0.63583035]
[1759861447690,0.001,120960.0,120950.0,0.63583035]
[1759861448118,0.001,120960.0,120950.0,0.63615035]
[1759861448331,0.00012041,120960.0,120950.0,0.71614715]
[1759861449818,0.00012041,120960.0,120950.0,0.47814715]
[1759861450017,0.00012041,120960.0,120950.0,0.39815035]
[1759861450355,0.00012041,120960.0,120950.0,0.64111035]
[1759861453419,0.00012041,120960.0,120950.0,0.40315035]
[1759861453566,0.00012041,120960.0,120950.0,0.64099035]
[1759861455496,0.00012041,120960.0,120950.0,0.40315035]
[1759861455693,0.00012041,120960.0,120950.0,0.64091035]
[1759861456720,0.00012041,120960.0,120950.0,0.40315035]
[1759861456932,0.00012041,120960.0,120950.0,0.64075035]
[1759861458729,0.00012041,120960.0,120950.0,0.72074715]
[1759861459056,0.00012041,120960.0,120950.0,0.72066715]
[1759861459217,0.00012041,120960.0,120950.0,0.48314715]
[1759861459436,0.00012041,120960.0,120950.0,0.64067035]
[1759861460098,0.00012041,120960.0,120950.0,0.64063035]
[1759861463541,0.61585577,120960.0,120950.0,0.40315035]
[1759861463746,0.61585577,120960.0,120950.0,0.64055035]
[1759861464189,0.00012041,120960.0,120950.0,0.64055035]
[1759861464401,0.61573536,120970.0,120960.0,0.16534391]
[1759861464610,0.61573536,120970.0,120960.0,0.27364391]
[1759861464810,0.7810656,120970.0,120960.0,0.30784391]
[1759861465674,0.7810656,120970.0,120960.0,0.54512391]
[1759861466427,0.7870656,120970.0,120960.0,0.55112391]
[1759861466822,0.7870656,120970.0,120960.0,0.55104391]
[1759861467256,0.7810656,120970.0,120960.0,0.54504391]
[1759861467456,0.7860656,120970.0,120960.0,0.55304391]
[1759861467655,0.62073536,120970.0,120960.0,0.55304391]
[1759861467857,0.7860656,120970.0,120960.0,0.55304391]
[1759861468074,0.7840656,120970.0,120960.0,0.55304391]
[1759861469082,0.7810656,120970.0,120960.0,0.54504391]
[1759861469487,0.7810656,120970.0,120960.0,0.55604391]
[1759861469488,0.7840656,120970.0,120960.0,0.55604391]
[1759861469701,0.7820656,120970.0,120960.0,0.54504391]
[1759861470075,0.16833024,120970.0,120960.0,0.55304391]
[1759861470276,0.7810656,120970.0,120960.0,0.54504391]
[1759861470463,0.001,120970.0,120960.0,0.54504391]
[1759861470695,0.7850656,120970.0,120960.0,0.55604391]
[1759861470902,0.16933024,120970.0,120960.0,0.55604391]
[1759861471494,0.7850656,120970.0,120960.0,0.55604391]
[1759861474185,0.61973536,120970.0,120960.0,0.55604391]
[1759861474438,0.7850656,120970.0,120960.0,0.31884391]
[1759861474624,0.16933024,120970.0,120960.0,0.55580391]
[1759861474944,0.16933024,120970.0,120960.0,0.63580071]
[1759861475328,0.16933024,120970.0,120960.0,0.55580391]
[1759861476092,0.16933024,120970.0,120960.0,0.55576391]
[1759861476721,0.004,120970.0,120960.0,0.55568391]
[1759861476926,0.16933024,120970.0,120960.0,0.55568391]
[1759861477762,0.7850656,120970.0,120960.0,0.55568391]
[1759861479213,0.7850656,120970.0,120960.0,0.39034]
[1759861479434,0.7850656,120970.0,120960.0,0.55568391]
[1759861479761,0.16933024,120970.0,120960.0,0.55568391]
[1759861480036,0.7850656,120970.0,120960.0,0.55568391]
[1759861481864,0.7850656,120970.0,120960.0,0.31884391]
[1759861482080,0.7850656,120970.0,120960.0,0.55560391]
[1759861483261,0.7850656,120970.0,120960.0,0.31884391]
[1759861483430,0.7850656,120970.0,120960.0,0.55552391]
[1759861483631,0.7850656,120970.0,120960.0,0.55544391]
[1759861484206,0.16933024,120970.0,120960.0,0.55544391]
[1759861484790,0.16933024,120970.0,120960.0,0.3901]
[1759861485311,0.16933024,120970.0,120960.0,0.55544391]
[1759861485760,0.16933024,120970.0,120960.0,0.3901]
[1759861489408,0.18587024,120970.0,120960.0,0.3901]
[1759861489633,0.16933024,120970.0,120960.0,0.55544391]
[1759861490248,0.16933024,120970.0,120960.0,0.47606]
[1759861490447,0.16933024,120970.0,120960.0,0.71062798]
[1759861490652,0.16933024,120970.0,120960.0,0.64140391]
[1759861495199,0.004,120970.0,120960.0,0.64140391]
[1759861495373,0.16933024,120970.0,120960.0,0.64140391]
[1759861496030,0.004,120970.0,120960.0,0.68593427]
[1759861496260,0.004,120970.0,120960.0,0.76593107]
[1759861497116,0.003,120970.0,120960.0,0.76593107]
[1759861497322,0.003,120970.0,120960.0,0.76693107]
[1759861497537,2.16485341,120970.0,120960.0,0.05653036]
[1759861497750,4.53954522,120970.0,120960.0,0.011]
[1759861497973,1.66452591,120960.0,120950.0,0.00629277]
[1759861498190,3.19119669,120960.0,120950.0,0.08713277]
[1759861498405,3.13778969,120960.0,120950.0,0.08713277]
[1759861498631,2.99176169,120960.0,120950.0,0.08713277]
[1759861498845,3.29732869,120960.0,120950.0,0.24361277]
[1759861499060,2.44998955,120960.0,120950.0,0.00629277]
[1759861499195,3.31844869,120960.0,120950.0,0.24357277]
[1759861499432,3.09464569,120960.0,120950.0,0.24657277]
[1759861499640,3.43015269,120960.0,120950.0,0.24657277]
[1759861500013,3.28607069,120960.0,120950.0,0.24657277]
[1759861500309,1.82193669,120960.0,120950.0,0.24657277]
[1759861500450,3.29371969,120960.0,120950.0,0.24657277]
[1759861500652,3.24011569,120960.0,120950.0,0.24657277]
[1759861500878,3.51602769,120960.0,120950.0,0.24657277]
[1759861501101,2.67835969,120960.0,120950.0,0.24657277]
[1759861501302,1.82393669,120960.0,120950.0,0.26441277]
[1759861501704,1.88443425,120960.0,120950.0,0.26441277]
[1759861501911,1.88443425,120960.0,120950.0,0.31036277]
[1759861502344,1.90926505,120960.0,120950.0,0.31036277]
[1759861502693,1.90926505,120960.0,120950.0,0.32821277]
[1759861503071,1.90974841,120960.0,120950.0,0.32821277]
[1759861503478,0.59467227,120960.0,120950.0,0.55301035]
[1759861503829,0.16934391,120960.0,120950.0,0.55301035]
[1759861504520,0.17363981,120940.0,120930.0,0.0623785]
[1759861504635,0.19038492,120930.0,120920.0,0.23724]
[1759861504851,0.19043514,120930.0,120920.0,0.43176815]
[1759861505055,0.21527018,120930.0,120920.0,0.26878753]
[1759861505258,0.21527018,120930.0,120920.0,0.43418614]
[1759861505463,0.21527018,120930.0,120920.0,0.33912753]
[1759861506099,0.21727018,120930.0,120920.0,0.34712753]
[1759861506497,0.21727018,120930.0,120920.0,0.38873753]
[1759861506698,0.55727018,120930.0,120920.0,0.38873753]
[1759861507306,0.55727018,120930.0,120920.0,0.39073753]
[1759861508853,0.43053477,120930.0,120890.0,0.1]
[1759861509089,0.02499999,120880.0,120860.0,0.19427403]
[1759861509274,0.02499999,120900.0,120880.0,0.16545334]
[1759861509512,0.21526752,120900.0,120890.0,0.59066965]
[1759861509770,0.21526694,120900.0,120890.0,0.63227965]
[1759861510185,0.19042596,120900.0,120890.0,0.46884]
[1759861510367,0.19042596,120900.0,120890.0,0.63443117]
[1759861510565,0.19042596,120900.0,120890.0,0.63243117]
[1759861510799,0.19042596,120900.0,120890.0,0.63443117]
[1759861511631,0.19442596,120900.0,120890.0,0.63643117]
[1759861512610,0.004,120900.0,120890.0,0.63643117]
[1759861513271,0.004,120900.0,120890.0,0.31067117]
[1759861513475,0.004,120900.0,120890.0,0.63635117]
[1759861515360,0.004,120900.0,120890.0,0.63790443]
[1759861515522,2.40060368,120900.0,120890.0,0.00570478]
[1759861515731,1.22027405,120900.0,120890.0,0.00570478]
[1759861515940,0.39619999,120900.0,120890.0,0.03483478]
[1759861516169,0.82705075,120900.0,120890.0,0.03483478]
[1759861516363,0.82705075,120900.0,120890.0,0.20027443]
[1759861516575,0.02899999,120900.0,120890.0,0.51843443]
[1759861516832,0.36899999,120900.0,120890.0,0.54944644]
[1759861517043,0.36899999,120900.0,120890.0,0.51843443]
[1759861517185,0.36799999,120900.0,120890.0,0.50060443]
[1759861517595,0.36799999,120900.0,120890.0,0.51843443]
[1759861518050,0.02799999,120900.0,120890.0,0.51843443]
[1759861518249,0.02799999,120900.0,120890.0,0.48276443]
[1759861518774,0.02799999,120900.0,120890.0,0.50060443]
[1759861519873,0.05284029,120900.0,120890.0,0.50060443]
[1759861520274,0.05284029,120900.0,120890.0,0.51843443]
[1759861520479,0.89284029,120900.0,120890.0,0.50060443]
[1759861520687,0.8678403,120900.0,120890.0,0.53628443]
[1759861520804,0.503,120900.0,120890.0,0.53628443]
[1759861521227,0.503,120900.0,120850.0,0.1]
[1759861521228,1.12625138,120900.0,120850.0,0.1]
[1759861521445,0.02499999,120860.0,120850.0,0.16599648]
[1759861521654,0.02499999,120860.0,120850.0,0.29868648]
[1759861521879,0.36499999,120870.0,120860.0,0.16548072]
[1759861522083,0.38984772,120870.0,120860.0,0.28061072]
[1759861524032,0.59250438,120870.0,120850.0,0.00050207]
[1759861524255,1.69424943,120860.0,120850.0,0.00050207]
[1759861524461,1.93796112,120860.0,120850.0,0.00050207]
[1759861524680,1.93796112,120860.0,120850.0,0.22594207]
[1759861524681,1.15248712,120860.0,120850.0,0.22594207]
[1759861524908,1.16878712,120860.0,120850.0,0.24558207]
[1759861525115,1.13675445,120860.0,120850.0,0.24558207]
[1759861525318,0.88784412,120860.0,120850.0,0.24554207]
[1759861525743,0.88784412,120860.0,120850.0,0.00050207]
[1759861525949,0.88784412,120860.0,120850.0,0.24554207]
[1759861525950,0.90543252,120860.0,120850.0,0.24554207]
[1759861526171,0.90543252,120860.0,120850.0,0.00050207]
[1759861526383,0.90543252,120860.0,120850.0,0.24550207]
[1759861526589,0.90743252,120860.0,120850.0,0.24550207]
[1759861527039,1.39984412,120860.0,120850.0,0.24750207]
[1759861527255,1.41742969,120860.0,120850.0,0.00457402]
[1759861527507,1.23572192,120860.0,120850.0,0.24953402]
[1759861527705,1.40120264,120860.0,120850.0,0.24953402]
[1759861527914,1.40120264,120860.0,120850.0,0.00457402]
[1759861528115,1.40120264,120860.0,120850.0,0.19081402]
[1759861528443,1.46362395,120860.0,120850.0,0.19081402]
[1759861528676,1.46362395,120860.0,120850.0,0.00457402]
[1759861528881,1.46362395,120860.0,120850.0,0.24937402]
[1759861529015,1.46362395,120860.0,120850.0,0.24929402]
[1759861529432,1.46362395,120860.0,120850.0,0.24925402]
[1759861529819,1.46362395,120860.0,120850.0,0.00457402]
[1759861530027,1.46362395,120860.0,120850.0,0.24925402]
[1759861530231,1.44834526,120860.0,120850.0,0.24925402]
[1759861530448,1.46359941,120860.0,120850.0,0.24925402]
[1759861530659,1.05760243,120860.0,120850.0,0.24925402]
[1759861530906,1.48845319,120860.0,120850.0,0.24913402]
[1759861531505,1.48845319,120860.0,120850.0,0.00457402]
[1759861531720,1.53808319,120860.0,120790.0,0.1]
[1759861531926,0.25694579,120820.0,120780.0,0.24677927]
[1759861532133,0.02499999,120790.0,120780.0,0.24556]
[1759861532514,0.02499999,120790.0,120780.0,0.45370413]
[1759861532736,0.04986273,120790.0,120780.0,0.28105413]
[1759861532946,0.04986273,120790.0,120780.0,0.50463413]
[1759861533157,0.05036468,120790.0,120780.0,0.50463413]
[1759861533379,0.05036468,120790.0,120780.0,0.49694032]
[1759861533623,0.02550194,120790.0,120780.0,0.51908032]
[1759861533806,0.02650194,120790.0,120780.0,0.52308032]
[1759861534021,0.00550195,120790.0,120780.0,0.52308032]
[1759861534243,0.00550195,120790.0,120780.0,0.03886]
[1759861534244,0.06728194,120790.0,120780.0,0.03886]
[1759861534452,0.00550195,120790.0,120780.0,0.60896032]
[1759861535801,0.23285856,120790.0,120780.0,0.20445032]
[1759861536038,1.09003262,120790.0,120780.0,0.004]
[1759861536266,1.84977307,120790.0,120780.0,0.0116849]
[1759861536487,1.85009094,120790.0,120780.0,0.0116849]
[1759861536707,1.86260534,120790.0,120780.0,0.0076849]
[1759861536935,2.12048534,120790.0,120780.0,0.0106849]
[1759861537283,6.82652091,120790.0,120780.0,0.003]
[1759861537482,1.58064091,120790.0,120780.0,0.003]
[1759861537691,6.13296376,120790.0,120780.0,0.00662861]